fUST/lending_fUST_20241230
["ID","MTS","AMOUNT","RATE_DAILY","PERIOD"]
[347155516,1735528254271,-239.880845,0.0002,2]
[347155517,1735528254280,-269.440535,0.0002,2]
[347155518,1735528254289,-152.388252,0.0002,2]
[347155519,1735528254298,-423.785848,0.0002,2]
[347155520,1735528254306,-423.785848,0.0002,2]
[347155521,1735528254315,-153.67852,0.0002,2]
[347155522,1735528254325,-308.006433,0.0002,2]
[347155523,1735528254334,-308.006433,0.0002,2]
[347155524,1735528254343,-237.937669,0.0002,2]
[347155525,1735528254352,-237.937669,0.0002,2]
[347155526,1735528254361,-237.937669,0.0002,2]
[347155527,1735528254370,-237.937669,0.0002,2]
[347155528,1735528254380,-200.560806,0.0002,2]
[347155529,1735528254389,-200.560806,0.0002,2]
[347155530,1735528254398,-200.560806,0.0002,2]
[347155531,1735528254407,-200.560806,0.0002,2]
[347155532,1735528254416,-360.682675,0.0002,2]
[347155533,1735528254425,-360.682675,0.0002,2]
[347155534,1735528254434,-360.682675,0.0002,2]
[347155535,1735528254444,-360.682675,0.0002,2]
[347155536,1735528254453,-155.402267,0.0002,2]
[347155537,1735528254462,-359.441994,0.0002,2]
[347155538,1735528254471,-359.441994,0.0002,2]
[347155539,1735528254480,-151.0,0.0002,2]
[347155540,1735528254489,-1195.157389,0.0002,2]
[347155541,1735528254498,-151.0,0.0002,2]
[347155542,1735528254507,-1195.157389,0.0002,2]
[347155543,1735528254516,-1195.157389,0.0002,2]
[347155544,1735528254526,-1195.157389,0.0002,2]
[347155545,1735528254535,-151.0,0.0002,2]
[347155546,1735528254545,-151.0,0.0002,2]
[347155547,1735528254554,-151.0,0.0002,2]
[347155548,1735528254564,-151.0,0.0002,2]
[347155549,1735528254573,-344.257768,0.0002,2]
[347155550,1735528254583,-344.257768,0.0002,2]
[347155551,1735528254592,-344.257768,0.0002,2]
[347155552,1735528254601,-344.257768,0.0002,2]
[347155553,1735528254610,-151.0,0.0002,2]
[347155554,1735528254619,-151.0,0.0002,2]
[347155555,1735528254628,-327.622325,0.0002,2]
[347155556,1735528254637,-327.622325,0.0002,2]
[347155557,1735528254646,-327.622325,0.0002,2]
[347155558,1735528254656,-327.622325,0.0002,2]
[347155559,1735528254665,-303.68971,0.0002,2]
[347155560,1735528254674,-303.68971,0.0002,2]
[347155561,1735528254687,-193.153718,0.0002,2]
[347155562,1735528254696,-193.153718,0.0002,2]
[347155563,1735528254706,-303.68971,0.0002,2]
[347155564,1735528254715,-303.68971,0.0002,2]
[347155565,1735528254725,-193.153718,0.0002,2]
[347155566,1735528254735,-193.153718,0.0002,2]
[347155567,1735528254821,-187.199714,0.0002,2]
[347155568,1735528254833,-187.199714,0.0002,2]
[347155569,1735528254842,-151.0,0.0002,2]
[347155570,1735528254852,-802.232631,0.0002,2]
[347155572,1735528254861,-802.232631,0.0002,2]
[347155573,1735528254871,-427.177889,0.0002,2]
[347155574,1735528254880,-427.177889,0.0002,2]
[347155575,1735528254890,-1336.929094,0.0002,2]
[347155576,1735528254899,-1034.018954,0.0002,2]
[347155577,1735528254909,-1336.929094,0.0002,2]
[347155578,1735528254918,-1034.018954,0.0002,2]
[347155579,1735528254927,-688.781212,0.0002,2]
[347155580,1735528254937,-688.781212,0.0002,2]
[347155581,1735528254947,-960.412041,0.0002,2]
[347155582,1735528254956,-151.0,0.0002,2]
[347155583,1735528254965,-163.013264,0.0002,2]
[347155584,1735528254974,-960.412041,0.0002,2]
[347155585,1735528254984,-163.013264,0.0002,2]
[347155586,1735528254994,-506.929871,0.0002,2]
[347155587,1735528255003,-506.929871,0.0002,2]
[347155588,1735528255012,-3384.126348,0.0002,2]
[347155589,1735528255021,-3384.126348,0.0002,2]
[347155590,1735528255031,-264.91273,0.0002,2]
[347155591,1735528255040,-264.91273,0.0002,2]
[347155592,1735528255049,-704.478524,0.0002,2]
[347155593,1735528255058,-704.478524,0.0002,2]
[347155594,1735528255067,-674.55354,0.0002,2]
[347155595,1735528255079,-674.55354,0.0002,2]
[347155596,1735528255088,-600.0,0.00020002,2]
[347155597,1735528255097,-427.177889,0.00020008,2]
[347155598,1735528255106,-427.177889,0.00020008,2]
[347155599,1735528255115,-1336.929094,0.00020008,2]
[347155600,1735528255124,-1034.018954,0.00020008,2]
[347155601,1735528255133,-1336.929094,0.00020008,2]
[347155602,1735528255143,-1034.018954,0.00020008,2]
[347155603,1735528255152,-688.781212,0.00020008,2]
[347155604,1735528255161,-688.781212,0.00020008,2]
[347155605,1735528255170,-163.013264,0.00020008,2]
[347155606,1735528255179,-163.013264,0.00020008,2]
[347155607,1735528255188,-704.478524,0.00020008,2]
[347155608,1735528255197,-704.478524,0.00020008,2]
[347155609,1735528255206,-182.918,0.00020008,2]
[347155610,1735528255215,-150.0,0.00020008,2]
[347155611,1735528255224,-191.684,0.00020008,2]
[347155612,1735528255233,-251.615,0.00020008,2]
[347155613,1735528255242,-150.333,0.00020008,2]
[347155614,1735528255251,-2127.0,0.00020008,2]
[347155615,1735528255261,-613.485,0.00020008,2]
[347155616,1735528255270,-2358.0,0.00020008,2]
[347155617,1735528255279,-1597.83,0.00020013,2]
[347155618,1735528255288,-1880.88,0.00020014,2]
[347155619,1735528255297,-160.0,0.0002009,2]
[347155620,1735528255306,-151.0,0.00020091,2]
[347155621,1735528255315,-151.0,0.00020091,2]
[347155622,1735528255325,-151.0,0.00020091,2]
[347155623,1735528255335,-151.0,0.00020091,2]
[347155624,1735528255344,-151.0,0.00020091,2]
[347155625,1735528255353,-151.0,0.00020091,2]
[347155626,1735528255362,-176.479463,0.00020091,2]
[347155627,1735528255371,-556.325506,0.00020091,2]
[347155628,1735528255380,-556.325506,0.00020091,2]
[347155629,1735528255390,-556.325506,0.00020091,2]
[347155630,1735528255398,-556.325506,0.00020091,2]
[347155631,1735528255407,-151.0,0.00020091,2]
[347155632,1735528255416,-423.785848,0.00020091,2]
[347155633,1735528255425,-423.785848,0.00020091,2]
[347155634,1735528255434,-200.560806,0.00020091,2]
[347155635,1735528255443,-200.560806,0.00020091,2]
[347155636,1735528255453,-359.441994,0.00020091,2]
[347155637,1735528255463,-2854.07,0.00020091,2]
[347155638,1735528255472,-264.91273,0.00020091,2]
[347155639,1735528255482,-264.91273,0.00020091,2]
[347155640,1735528255492,-674.55354,0.00020091,2]
[347155641,1735528255501,-674.55354,0.00020091,2]
[347155642,1735528255511,-307.8273413,0.0002011,2]
[347155643,1735528255520,-160.36464051,0.00020199,2]
[347155644,1735528255530,-500.0,0.00020199,2]
[347155645,1735528255539,-500.0,0.00020199,2]
[347155646,1735528255549,-2305.90116892,0.000202,2]
[347155647,1735528255558,-2305.90116889,0.000202,2]
[347155648,1735528255567,-2305.90116889,0.000202,2]
[347155649,1735528255577,-2305.90116889,0.000202,2]
[347155650,1735528255586,-151.0,0.000202,2]
[347155651,1735528255596,-151.0,0.000202,2]
[347155652,1735528255605,-151.0,0.000202,2]
[347155653,1735528255613,-239.880845,0.000202,2]
[347155654,1735528255622,-239.880845,0.000202,2]
[347155655,1735528255632,-187.199714,0.000202,2]
[347155656,1735528255641,-187.199714,0.000202,2]
[347155657,1735528255650,-151.0,0.000202,2]
[347155658,1735528255659,-802.232631,0.000202,2]
[347155659,1735528255668,-802.232631,0.000202,2]
[347155660,1735528255678,-506.929871,0.000202,2]
[347155661,1735528255693,-506.929871,0.000202,2]
[347155662,1735528255703,-3384.126348,0.000202,2]
[347155663,1735528255713,-3384.126348,0.000202,2]
[347155664,1735528255722,-966.37539184,0.0002021,2]
[347155665,1735528255733,-500.0,0.00020273,2]
[347155666,1735528255743,-499.0,0.00020273,2]
[347155667,1735528255752,-1597.83,0.00020287,2]
[347155668,1735528255763,-1880.88,0.00020288,2]
[347155669,1735528255774,-892.9273495,0.00020314,2]
[347155670,1735528255783,-151.0,0.00020365,2]
[347155671,1735528255792,-151.0,0.00020365,2]
[347155672,1735528255802,-279.868811,0.00020365,2]
[347155673,1735528255811,-151.0,0.00020365,2]
[347155674,1735528255821,-556.325506,0.00020365,2]
[347155675,1735528255831,-556.325506,0.00020365,2]
[347155676,1735528255841,-163.255512,0.00020365,2]
[347155677,1735528255850,-163.255512,0.00020365,2]
[347155678,1735528255859,-151.0,0.00020365,2]
[347155679,1735528255869,-308.006433,0.00020365,2]
[347155680,1735528255879,-237.937669,0.00020365,2]
[347155681,1735528255888,-237.937669,0.00020365,2]
[347155682,1735528255898,-360.682675,0.00020365,2]
[347155683,1735528255907,-360.682675,0.00020365,2]
[347155684,1735528255916,-1195.157389,0.00020365,2]
[347155685,1735528255926,-1195.157389,0.00020365,2]
[347155686,1735528255936,-151.0,0.00020365,2]
[347155687,1735528255946,-344.257768,0.00020365,2]
[347155688,1735528255955,-344.257768,0.00020365,2]
[347155689,1735528255964,-151.0,0.00020365,2]
[347155690,1735528255973,-327.622325,0.00020365,2]
[347155691,1735528255983,-327.622325,0.00020365,2]
[347155692,1735528255992,-303.68971,0.00020365,2]
[347155693,1735528256001,-193.153718,0.00020365,2]
[347155694,1735528256010,-303.68971,0.00020365,2]
[347155695,1735528256019,-193.153718,0.00020365,2]
[347155696,1735528256028,-2854.07,0.00020365,2]
[347155697,1735528256038,-960.412041,0.00020365,2]
[347155698,1735528256047,-151.0,0.00020365,2]
[347155699,1735528256056,-960.412041,0.00020365,2]
[347155700,1735528256068,-3955.4481688,0.00020373,3]
[347155701,1735528256080,-151.0,0.00020373,2]
[347155702,1735528256089,-151.0,0.00020373,2]
[347155703,1735528256098,-400.0,0.00020447,2]
[347155704,1735528256107,-160.0,0.0002045,5]
[347155705,1735528256117,-154.0,0.0002047,2]
[347155706,1735528256126,-500.0,0.00020473,2]
[347155707,1735528256136,-505.23739682,0.00020473,2]
[347155708,1735528256145,-423.785848,0.00020489,2]
[347155709,1735528256155,-423.785848,0.00020489,2]
[347155710,1735528256164,-14794.18855142,0.000205,2]
[347155711,1735528256173,-151.0,0.000205,2]
[347155712,1735528256182,-556.325506,0.000205,2]
[347155713,1735528256191,-556.32551,0.000205,2]
[347155714,1735528256200,-200.560806,0.000205,2]
[347155715,1735528256209,-200.560806,0.000205,2]
[347155716,1735528256218,-359.441994,0.000205,2]
[347155717,1735528256227,-427.177889,0.000205,2]
[347155718,1735528256236,-427.177889,0.000205,2]
[347155719,1735528256246,-1336.929094,0.000205,2]
[347155720,1735528256255,-1034.018954,0.000205,2]
[347155721,1735528256264,-1336.929094,0.000205,2]
[347155722,1735528256274,-1034.018954,0.000205,2]
[347155723,1735528256283,-688.781212,0.000205,2]
[347155724,1735528256292,-688.781212,0.000205,2]
[347155725,1735528256301,-163.013264,0.000205,2]
[347155726,1735528256311,-163.013264,0.000205,2]
[347155727,1735528256320,-704.478524,0.000205,2]
[347155728,1735528256330,-704.478524,0.000205,2]
[347155729,1735528256340,-151.0,0.00020519,2]
[347155730,1735528256349,-15310.2391826,0.0002052,2]
[347155731,1735528256358,-154.196358,0.0002052,2]
[347155732,1735528256367,-239.880845,0.0002052,2]
[347155733,1735528256375,-239.880845,0.0002052,2]
[347155734,1735528256385,-162.276103,0.00020521,2]
[347155735,1735528256394,-500.0,0.00020547,2]
[347155736,1735528256403,-399.358868,0.00020548,2]
[347155737,1735528256413,-151.0,0.00020561,2]
[347155738,1735528256422,-1597.83,0.00020561,2]
[347155739,1735528256431,-163.255512,0.00020561,2]
[347155740,1735528256440,-163.255512,0.00020561,2]
[347155741,1735528256449,-151.0,0.00020562,2]
[347155742,1735528256459,-1880.88,0.00020562,2]
[347155743,1735528256468,-264.91273,0.00020562,2]
[347155744,1735528256478,-264.91273,0.00020562,2]
[347155745,1735528256487,-674.55354,0.00020562,2]
[347155746,1735528256497,-674.55354,0.00020562,2]
[347155747,1735528256506,-187.199714,0.00020565,2]
[347155748,1735528256515,-187.199714,0.00020565,2]
[347155749,1735528256525,-151.0,0.00020565,2]
[347155750,1735528256534,-802.232631,0.00020565,2]
[347155751,1735528256543,-802.232631,0.00020565,2]
[347155752,1735528256552,-506.929871,0.00020565,2]
[347155753,1735528256562,-506.929871,0.00020565,2]
[347155754,1735528256571,-154.0,0.00020589,2]
[347155755,1735528256582,-201.33,0.000206,3]
[347155756,1735528256591,-201.33,0.000206,4]
[347155757,1735528256668,-201.91639643,0.000206,3]
[347155758,1735528256678,-618.0,0.000206,2]
[347155759,1735528256691,-3051.28980129,0.0002061,2]
[347155760,1735528256701,-5868.57371091,0.0002063,2]
[347155761,1735528256710,-306.6499835,0.0002063,2]
[347155762,1735528256719,-236.47,0.00020635,2]
[347155763,1735528256729,-151.0,0.00020639,2]
[347155764,1735528256739,-151.0,0.00020639,2]
[347155765,1735528256748,-172.0,0.00020641,2]
[347155766,1735528256758,-192.14,0.00020641,2]
[347155767,1735528256767,-518655.80061544,0.0002066,2]
[347155768,1735528256952,-8004.22914912,0.0002066,2]
[347155769,1735528257053,-394.0,0.00019285,2]
[347155770,1735528257063,-42050.67515538,0.0002066,2]
[347156389,1735528758320,4380.0031012,0.00012654,2]
[347156390,1735528982203,4380.992459,0.00012554,2]
[347156391,1735529016135,500.0,0.00012,14]
[347156392,1735529052442,500.0,0.00013,7]
[347156393,1735529060435,500.0,0.00013,7]
[347156394,1735529061966,500.0,0.00013,7]
[347156395,1735529062986,500.0,0.00013,7]
[347156396,1735529063895,500.0,0.00013,7]
[347156397,1735529064823,500.0,0.00013,7]
[347156398,1735529065814,500.0,0.00013,7]
[347156399,1735529068235,500.0,0.00013,7]
[347156400,1735529069076,500.0,0.00013,7]
[347156401,1735529083364,500.0,0.00013,7]
[347156402,1735529095543,879.0,0.00013,7]
[347156403,1735529125664,500.0,0.00013,14]
[347156404,1735529188705,24900.0,0.00012543,2]
[347156405,1735529306951,5481.19119627,0.0001,2]
[347156407,1735529318811,1185.51822608,0.0002,120]
[347156411,1735529372258,-182.30222785,0.00013067,2]
[347156412,1735529372284,-182.30222785,0.00013332,2]
[347156413,1735529372311,-151.0,0.000135,2]
[347156414,1735529372335,-155.60987451,0.00013502,2]
[347156415,1735529372364,-212.75428549,0.00013505,2]
[347156417,1735529372391,-182.92065015,0.00013506,2]
[347156418,1735529372416,-203.54609944,0.000136,2]
[347156420,1735529372452,-96.45390056,0.000136,2]
[347156421,1735529372485,-500.0,0.00013601,2]
[347156423,1735529372514,-151.64859919,0.00013601,2]
[347156424,1735529372545,-167.21843459,0.00013601,2]
[347156425,1735529372572,-500.0,0.00013601,2]
[347156426,1735529372597,-439.29695647,0.00013601,2]
[347156427,1735529372624,-163.91997423,0.00013601,2]
[347156430,1735529397277,-314.07873325,0.00013465,2]
[347156434,1735529431940,279.2,0.00025,120]
[347156492,1735529432630,-2425.14949442,0.00013465,2]
[347156494,1735529432642,-1327.5417981,0.00013465,2]
[347156496,1735529432652,-182.92065015,0.00013505,2]
[347156498,1735529432661,-300.0,0.000136,2]
[347156500,1735529432671,-336.08002577,0.00013601,2]
[347156502,1735529432681,-500.0,0.00013601,2]
[347156504,1735529432691,-703.48,0.00013601,2]
[347156506,1735529432700,-500.0,0.00013601,2]
[347156508,1735529432709,-527.21,0.00013601,2]
[347156510,1735529432719,-500.0,0.00013601,2]
[347156512,1735529432729,-500.0,0.00013601,2]
[347156514,1735529432738,-500.0,0.00013601,2]
[347156515,1735529432748,-500.0,0.00013601,2]
[347156517,1735529432758,-500.0,0.00013601,2]
[347156519,1735529432768,-204.38280032,0.00013601,2]
[347156521,1735529432777,-500.0,0.00013601,2]
[347156523,1735529432787,-500.56024496,0.00013601,2]
[347156525,1735529432796,-500.0,0.00013601,2]
[347156527,1735529432806,-500.0,0.00013601,2]
[347156529,1735529432815,-1020.71,0.00013601,2]
[347156531,1735529432825,-500.0,0.00013601,2]
[347156533,1735529432835,-500.0,0.00013601,2]
[347156535,1735529432844,-581.11130702,0.00013601,2]
[347156537,1735529432854,-627.53232399,0.00013601,2]
[347156539,1735529432863,-500.0,0.00013601,2]
[347156541,1735529432873,-500.0,0.00013601,2]
[347156543,1735529432882,-500.0,0.00013601,2]
[347156545,1735529432893,-466.23590325,0.00013601,2]
[347156547,1735529432903,-500.0,0.00013602,2]
[347156549,1735529432913,-500.0,0.00013602,2]
[347156551,1735529432923,-500.0,0.00013602,2]
[347156553,1735529432933,-500.0,0.00013602,2]
[347156555,1735529432942,-500.0,0.00013602,2]
[347156557,1735529432953,-500.0,0.00013602,2]
[347156559,1735529432962,-500.0,0.00013602,2]
[347156561,1735529432972,-500.0,0.00013602,2]
[347156563,1735529432982,-500.0,0.00013602,2]
[347156565,1735529432992,-500.0,0.00013602,2]
[347156567,1735529433002,-500.0,0.00013602,2]
[347156569,1735529433014,-500.0,0.00013602,2]
[347156571,1735529433025,-500.0,0.00013602,2]
[347156573,1735529433036,-500.0,0.00013602,2]
[347156575,1735529433047,-500.0,0.00013602,2]
[347156577,1735529433060,-500.39926762,0.00013602,2]
[347156579,1735529433070,-500.0,0.00013602,2]
[347156581,1735529433080,-500.0,0.00013602,2]
[347156583,1735529433092,-501.23562293,0.00013602,2]
[347156585,1735529433102,-500.0,0.00013602,2]
[347156587,1735529433112,-500.99212378,0.00013602,2]
[347156589,1735529433122,-501.6325714,0.00013602,2]
[347156591,1735529433134,-500.0,0.00013602,2]
[347156593,1735529433144,-500.0,0.00013602,2]
[347156595,1735529433155,-500.0,0.00013602,2]
[347156597,1735529433165,-501.54984219,0.00013602,2]
[347156599,1735529433175,-501.39043729,0.00013602,2]
[347156601,1735529433185,-501.76372179,0.00013602,2]
[347156603,1735529433195,-501.68102905,0.00013602,2]
[347156605,1735529433205,-500.55945165,0.00013602,2]
[347156607,1735529433215,-173.73,0.00013602,2]
[347156609,1735529433225,-500.0,0.00013602,2]
[347156611,1735529433235,-548.4239169,0.00013602,2]
[347156613,1735529433244,-500.0,0.00013602,2]
[347156615,1735529433254,-500.0,0.00013602,2]
[347156616,1735529433264,-217.56,0.00013602,2]
[347156617,1735529433274,-500.0,0.00013602,2]
[347156619,1735529433284,-500.0,0.00013602,2]
[347156621,1735529433294,-500.0,0.00013602,2]
[347156623,1735529433303,-541.69876922,0.00013602,2]
[347156625,1735529433314,-644.58,0.00013602,2]
[347156627,1735529433323,-500.0,0.00013602,2]
[347156629,1735529433333,-500.0,0.00013602,2]
[347156631,1735529433342,-500.7766032,0.00013602,2]
[347156633,1735529433352,-815.57,0.00013602,2]
[347156635,1735529433362,-501.76344009,0.00013602,2]
[347156637,1735529433372,-502.69335725,0.00013602,2]
[347156639,1735529433382,-510.36017658,0.00013602,2]
[347156641,1735529433391,-3185.2,0.00013602,2]
[347156643,1735529433400,-587.05,0.00013602,2]
[347156645,1735529433410,-500.0,0.00013602,2]
[347156647,1735529433420,-557.18,0.00013602,2]
[347156649,1735529433429,-500.0,0.00013602,2]
[347156651,1735529433439,-500.0,0.00013602,2]
[347156653,1735529433449,-500.0,0.00013602,2]
[347156655,1735529433459,-500.0,0.00013602,2]
[347156657,1735529433469,-500.0,0.00013602,2]
[347156659,1735529433478,-500.0,0.00013602,2]
[347156661,1735529433487,-502.44317136,0.00013602,2]
[347156663,1735529433497,-1003.81,0.00013602,2]
[347156665,1735529433507,-501.92,0.00013602,2]
[347156667,1735529433517,-1189.66,0.00013602,2]
[347156669,1735529433527,-550.13152952,0.00013602,2]
[347156671,1735529433537,-500.99765199,0.00013602,2]
[347156673,1735529433547,-678.57,0.00013602,2]
[347156675,1735529433557,-500.0,0.00013602,2]
[347156677,1735529433567,-500.48578213,0.00013602,2]
[347156679,1735529433577,-500.0,0.00013602,2]
[347156681,1735529433587,-3886.45,0.00013602,2]
[347156683,1735529433597,-500.0,0.00013602,2]
[347156685,1735529433607,-387.63119668,0.00013602,2]
[347156695,1735529433712,-500.0,0.00013602,2]
[347156696,1735529433723,-500.0,0.00013602,2]
[347156697,1735529433734,-500.0,0.00013602,2]
[347156698,1735529433744,-500.0,0.00013602,2]
[347156699,1735529433753,-500.0,0.00013602,2]
[347156700,1735529433765,-500.0,0.00013602,2]
[347156701,1735529433775,-500.0,0.00013602,2]
[347156702,1735529433785,-685.86,0.00013602,2]
[347156703,1735529433794,-500.0,0.00013602,2]
[347156704,1735529433804,-504.27090784,0.00013602,2]
[347156705,1735529433814,-500.0,0.00013602,2]
[347156706,1735529433824,-500.0,0.00013602,2]
[347156707,1735529433834,-500.0,0.00013602,2]
[347156708,1735529433844,-654.42,0.00013602,2]
[347156709,1735529433854,-500.0,0.00013602,2]
[347156710,1735529433864,-500.0,0.00013602,2]
[347156711,1735529433873,-501.16034634,0.00013602,2]
[347156712,1735529433883,-500.0,0.00013602,2]
[347156713,1735529433892,-500.0,0.00013602,2]
[347156714,1735529433903,-500.0,0.00013602,2]
[347156715,1735529433913,-501.32906215,0.00013602,2]
[347156716,1735529433923,-500.0,0.00013602,2]
[347156717,1735529433933,-500.0,0.00013602,2]
[347156718,1735529433943,-500.57628006,0.00013602,2]
[347156719,1735529433954,-500.0,0.00013602,2]
[347156720,1735529433965,-500.0,0.00013602,2]
[347156721,1735529433975,-506.06548795,0.00013602,2]
[347156722,1735529433985,-500.0,0.00013602,2]
[347156723,1735529433995,-500.0,0.00013602,2]
[347156724,1735529434005,-500.0,0.00013602,2]
[347156725,1735529434016,-515.7,0.00013602,2]
[347156726,1735529434026,-500.79269782,0.00013602,2]
[347156727,1735529434036,-500.0,0.00013602,2]
[347156728,1735529434046,-500.0,0.00013602,2]
[347156729,1735529434059,-500.0,0.00013602,2]
[347156730,1735529434069,-500.0,0.00013602,2]
[347156731,1735529434078,-500.0,0.00013602,2]
[347156732,1735529434088,-500.0,0.00013602,2]
[347156733,1735529434098,-500.0,0.00013602,2]
[347156734,1735529434107,-500.0,0.00013602,2]
[347156735,1735529434118,-2106.53,0.00013602,2]
[347156736,1735529434128,-500.0,0.00013602,2]
[347156737,1735529434137,-500.0,0.00013602,2]
[347156738,1735529434147,-500.0,0.00013602,2]
[347156739,1735529434157,-155.32862667,0.00013602,2]
[347156740,1735529434166,-500.0,0.00013603,2]
[347156741,1735529434176,-500.0,0.00013603,2]
[347156742,1735529434185,-500.0,0.00013603,2]
[347156743,1735529434194,-500.0,0.00013603,2]
[347156744,1735529434204,-500.0,0.00013603,2]
[347156745,1735529434214,-500.0,0.00013603,2]
[347156746,1735529434223,-501.1519908,0.00013603,2]
[347156747,1735529434232,-500.0,0.00013603,2]
[347156748,1735529434242,-500.0,0.00013603,2]
[347156749,1735529434252,-500.0,0.00013603,2]
[347156750,1735529434261,-502.02758632,0.00013603,2]
[347156751,1735529434271,-343.6242377,0.00013604,2]
[347156752,1735529434280,-192.73089383,0.00013604,2]
[347156753,1735529434290,-1192.33,0.00013604,2]
[347156754,1735529434299,-500.0,0.00013604,2]
[347156755,1735529434309,-500.0,0.00013604,2]
[347156756,1735529434319,-500.0,0.00013604,2]
[347156757,1735529434328,-500.0,0.00013604,2]
[347156758,1735529434338,-500.63693687,0.00013605,2]
[347156759,1735529434347,-500.45442562,0.00013605,2]
[347156760,1735529434357,-500.0,0.00013605,2]
[347156761,1735529434367,-502.2834741,0.00013605,2]
[347156762,1735529434376,-501.28025508,0.00013605,2]
[347156763,1735529434386,-500.6659814,0.00013605,2]
[347156764,1735529434395,-501.2986919,0.00013605,2]
[347156765,1735529434405,-500.55765821,0.00013605,2]
[347156766,1735529434414,-500.0,0.00013605,2]
[347156767,1735529434424,-500.40223918,0.00013605,2]
[347156768,1735529434434,-515.64698582,0.00013605,2]
[347156769,1735529434443,-500.0,0.00013605,2]
[347156770,1735529434452,-500.0,0.00013605,2]
[347156771,1735529434463,-501.40557081,0.00013605,2]
[347156772,1735529434472,-500.0,0.00013605,2]
[347156773,1735529434482,-501.22983464,0.00013605,2]
[347156774,1735529434493,-501.21349209,0.00013605,2]
[347156775,1735529434503,-500.46824424,0.00013605,2]
[347156776,1735529434513,-501.39288427,0.00013605,2]
[347156777,1735529434524,-500.64511508,0.00013605,2]
[347156778,1735529434533,-500.39889979,0.00013605,2]
[347156779,1735529434545,-500.23774935,0.00013605,2]
[347156780,1735529434555,-500.27247328,0.00013605,2]
[347156781,1735529434565,-500.43251637,0.00013605,2]
[347156782,1735529434575,-504.44407142,0.00013605,2]
[347156783,1735529434584,-500.0,0.00013605,2]
[347156784,1735529434594,-500.0,0.00013605,2]
[347156785,1735529434604,-500.29346904,0.00013605,2]
[347156786,1735529434614,-500.73342609,0.00013605,2]
[347156787,1735529434624,-504.29977029,0.00013605,2]
[347156788,1735529434634,-505.28251356,0.00013605,2]
[347156789,1735529434644,-500.0,0.00013605,2]
[347156790,1735529434654,-500.0,0.00013605,2]
[347156791,1735529434663,-501.58756655,0.00013605,2]
[347156792,1735529434673,-500.0,0.00013605,2]
[347156793,1735529434682,-502.77075797,0.00013605,2]
[347156794,1735529434691,-1219.86,0.00013605,2]
[347156795,1735529434701,-503.03044786,0.00013605,2]
[347156796,1735529434711,-500.39233079,0.00013605,2]
[347156797,1735529434720,-500.40590763,0.00013605,2]
[347156798,1735529434730,-501.01305225,0.00013605,2]
[347156799,1735529434740,-500.17643316,0.00013605,2]
[347156800,1735529434750,-500.64011824,0.00013605,2]
[347156801,1735529434759,-500.18808826,0.00013605,2]
[347156802,1735529434771,-501.99707997,0.00013605,2]
[347156803,1735529434781,-500.0,0.00013605,2]
[347156804,1735529434792,-501.4171804,0.00013605,2]
[347156805,1735529434802,-500.0,0.00013605,2]
[347156806,1735529434812,-500.0,0.00013605,2]
[347156807,1735529434821,-524.39258622,0.00013605,2]